bitfinex/quotes_BTCUSD_20220731
["timestamp","ask_amount","ask_price","bid_price","bid_amount"]
[1659235326845,1.01053493,23785.0,23784.0,0.009]
[1659235327291,0.93953493,23785.0,23776.0,0.241776]
[1659235327536,0.93953493,23785.0,23777.0,0.70725733]
[1659235327537,0.40725733,23784.0,23777.0,0.70725733]
[1659235328003,0.40725733,23784.0,23778.0,0.303413]
[1659235328222,0.40725733,23784.0,23779.0,0.35]
[1659235328458,0.42872736,23784.0,23779.0,0.35]
[1659235328678,0.60733599,23785.0,23780.0,0.40725733]
[1659235328897,0.62880602,23785.0,23780.0,0.40725733]
[1659235329357,0.54980602,23785.0,23780.0,0.40725733]
[1659235330015,0.54980602,23785.0,23780.0,0.48625733]
[1659235330527,0.52833599,23785.0,23780.0,0.48625733]
[1659235331859,0.52833599,23785.0,23780.0,0.40725733]
[1659235332079,0.52833599,23785.0,23780.0,0.48625733]
[1659235332310,0.52833599,23785.0,23783.0,0.05]
[1659235332525,0.52833599,23785.0,23783.0,0.08073155]
[1659235332762,0.52833599,23785.0,23783.0,0.05]
[1659235333905,0.52833599,23785.0,23783.0,0.08073155]
[1659235334127,0.52833599,23785.0,23783.0,0.15973155]
[1659235334644,0.52833599,23785.0,23784.0,0.02852997]
[1659235335299,0.5322776,23785.0,23784.0,0.02852997]
[1659235335743,0.5322776,23785.0,23783.0,0.05]
[1659235335969,0.5322776,23785.0,23784.0,0.079]
[1659235336659,0.93953493,23785.0,23784.0,0.079]
[1659235337346,0.93953493,23785.0,23779.0,0.8428]
[1659235338011,1.00853493,23785.0,23784.0,0.006]
[1659235338303,1.35853493,23785.0,23784.0,0.006]
[1659235338543,1.44009493,23785.0,23784.0,0.006]
[1659235339251,2.33419493,23785.0,23776.0,0.3]
[1659235339473,0.43882733,23784.0,23775.0,0.5569]
[1659235339707,0.40725733,23783.0,23776.0,0.3]
[1659235339924,0.45725733,23783.0,23775.0,0.5569]
[1659235340163,0.45725733,23783.0,23773.0,0.5836]
[1659235340164,0.94907833,23782.0,23773.0,0.5836]
[1659235340390,0.40725733,23781.0,23773.0,0.99085733]
[1659235340610,1.00155733,23781.0,23773.0,0.99085733]
[1659235340877,0.40725733,23780.0,23773.0,0.99085733]
[1659235341098,0.40725733,23780.0,23774.0,0.3]
[1659235341758,0.40725733,23780.0,23772.0,0.8569]
[1659235341990,0.40725733,23780.0,23774.0,0.078]
[1659235341991,0.61752533,23780.0,23774.0,0.078]
[1659235342260,0.40725733,23779.0,23774.0,0.078]
[1659235343196,0.40725733,23779.0,23772.0,0.8569]
[1659235344081,0.48625733,23779.0,23772.0,0.8569]
[1659235344302,0.48625733,23779.0,23771.0,0.3]
[1659235344303,0.40725733,23778.0,23771.0,0.3]
[1659235344534,0.40725733,23778.0,23771.0,1.02882522]
[1659235344815,0.40725733,23778.0,23772.0,0.303413]
[1659235345038,0.40725733,23778.0,23771.0,0.99724522]
[1659235345276,0.40725733,23778.0,23773.0,0.3]
[1659235345939,0.40725733,23778.0,23773.0,0.378]
[1659235346180,0.42872736,23778.0,23773.0,0.378]
[1659235346657,0.42872736,23778.0,23773.0,0.078]
[1659235346891,1.399345,23783.0,23774.0,0.603413]
[1659235347120,0.40725733,23782.0,23777.0,0.05]
[1659235347382,1.51629599,23785.0,23781.0,0.02852997]
[1659235347607,9.341e-05,23781.0,23779.0,0.05]
[1659235347841,9.341e-05,23781.0,23780.0,0.02852997]
[1659235348285,0.07475341,23781.0,23780.0,0.02852997]
[1659235348524,0.07475341,23781.0,23779.0,0.05]
[1659235348756,0.07869502,23781.0,23780.0,0.05]
[1659235349688,0.07869502,23781.0,23775.0,0.5462]
[1659235349960,0.15769502,23781.0,23776.0,0.40725733]
[1659235350389,0.10450505,23781.0,23776.0,0.40725733]
[1659235350611,0.08303502,23781.0,23776.0,0.40725733]
[1659235351276,0.00403502,23781.0,23776.0,0.40725733]
[1659235351955,0.08303502,23781.0,23776.0,0.40725733]
[1659235352853,0.07909341,23781.0,23776.0,0.40725733]
[1659235353292,9.341e-05,23781.0,23776.0,0.40725733]
[1659235354047,0.07909341,23781.0,23776.0,0.40725733]
[1659235354724,0.40725733,23780.0,23774.0,0.35]
[1659235354960,0.40725733,23780.0,23758.0,0.0021]
[1659235354961,0.40725733,23780.0,23770.0,0.8547]
[1659235355202,0.5425,23779.0,23771.0,0.40725733]
[1659235355426,0.40725733,23778.0,23771.0,0.40725733]
[1659235355638,0.40725733,23778.0,23772.0,0.3]
[1659235358165,0.40725733,23778.0,23772.0,0.326]
[1659235358853,0.42872736,23778.0,23772.0,0.326]
[1659235359306,0.40725733,23778.0,23772.0,0.3]
[1659235359536,9.341e-05,23781.0,23772.0,0.3]
[1659235359537,0.40725733,23780.0,23772.0,0.3]
[1659235359762,0.40725733,23780.0,23772.0,0.73886733]
[1659235359997,0.40725733,23780.0,23773.0,0.40725733]
[1659235360233,9.341e-05,23781.0,23773.0,0.74719647]
[1659235360510,9.341e-05,23781.0,23774.0,1.00851081]
[1659235360738,9.341e-05,23781.0,23775.0,0.40725733]
[1659235361641,0.02156344,23781.0,23775.0,0.40725733]
[1659235361835,9.341e-05,23781.0,23775.0,0.40725733]
[1659235362112,0.07909341,23781.0,23775.0,0.40725733]
[1659235362342,0.07909341,23781.0,23776.0,0.05]
[1659235363229,9.341e-05,23781.0,23776.0,0.05]
[1659235364085,0.07909341,23781.0,23776.0,0.05]
[1659235365009,0.0790074,23781.0,23780.0,0.37852997]
[1659235365238,7.4e-06,23781.0,23780.0,0.03073155]
[1659235365692,7.4e-06,23781.0,23780.0,0.04337503]
[1659235365966,7.4e-06,23781.0,23780.0,0.07337503]
[1659235367350,7.4e-06,23781.0,23780.0,0.04337503]
[1659235368020,7.4e-06,23781.0,23780.0,0.08837503]
[1659235368941,7.4e-06,23781.0,23780.0,0.045]
[1659235369431,7.4e-06,23781.0,23776.0,0.6479]
[1659235369612,0.02147743,23781.0,23776.0,1.05515733]
[1659235369833,7.4e-06,23781.0,23776.0,1.05515733]
[1659235370054,0.10047743,23781.0,23776.0,1.05515733]
[1659235370723,0.0790074,23781.0,23776.0,1.05515733]
[1659235370959,0.10047743,23781.0,23776.0,1.05515733]
[1659235371182,0.0790074,23781.0,23776.0,1.05515733]
[1659235371374,0.10047743,23781.0,23776.0,1.05515733]
[1659235371611,0.10047743,23781.0,23776.0,0.6479]
[1659235371830,0.02147743,23781.0,23776.0,0.6479]
[1659235372051,0.06747743,23781.0,23774.0,0.3]
[1659235372277,0.06747743,23781.0,23775.0,0.40725733]
[1659235373330,0.02147743,23781.0,23775.0,0.40725733]
[1659235373579,0.06770256,23781.0,23776.0,0.00378246]
[1659235373770,0.11770256,23781.0,23777.0,0.00378246]
[1659235374004,0.14770256,23781.0,23777.0,0.00378246]
[1659235374412,0.40725733,23780.0,23777.0,0.00378246]
[1659235374738,0.42147003,23778.0,23777.0,0.00378246]
[1659235374959,0.12147003,23777.0,23776.0,0.00378246]
[1659235375194,0.12147003,23777.0,23775.0,0.076]
[1659235375412,0.40725733,23780.0,23772.0,0.9099]
[1659235375651,0.40725733,23780.0,23772.0,1.31715733]
[1659235376082,0.40725733,23780.0,23775.0,0.063]
[1659235377215,0.40725733,23780.0,23772.0,1.31715733]
[1659235377911,0.48625733,23780.0,23772.0,1.31715733]
[1659235378125,0.40725733,23779.0,23772.0,1.31715733]
[1659235380011,0.48625733,23779.0,23772.0,1.31715733]
[1659235381319,0.40725733,23779.0,23772.0,1.31715733]
[1659235381949,0.48625733,23779.0,23772.0,1.31715733]
[1659235382196,0.48625733,23779.0,23772.0,1.31708356]
[1659235383260,0.40725733,23779.0,23772.0,1.31708356]
[1659235383916,0.48625733,23779.0,23772.0,1.31708356]
[1659235385708,0.40725733,23779.0,23772.0,1.31708356]
[1659235385921,0.48625733,23779.0,23772.0,1.31708356]
[1659235387265,0.40725733,23779.0,23772.0,1.31708356]
[1659235387739,0.40725733,23780.0,23774.0,0.04992623]
[1659235387950,0.079,23779.0,23775.0,0.2102]
[1659235388174,0.079,23779.0,23776.0,0.33414455]
[1659235388409,0.079,23779.0,23776.0,0.03073155]
[1659235389377,7.4e-06,23781.0,23776.0,0.03073155]
[1659235389599,7.4e-06,23781.0,23778.0,0.02852997]
[1659235389841,7.4e-06,23781.0,23779.0,0.03073155]
[1659235390500,0.00394901,23781.0,23778.0,0.40725733]
[1659235390941,7.4e-06,23781.0,23778.0,0.40725733]
[1659235391189,0.98905258,23785.0,23780.0,0.02852997]
[1659235391410,1.39630991,23785.0,23780.0,0.0784562]
[1659235392080,1.47530991,23785.0,23780.0,0.0784562]
[1659235393045,0.40725733,23784.0,23780.0,0.04992623]
[1659235393266,0.00394161,23783.0,23777.0,0.04992623]
[1659235393514,0.81119894,23783.0,23774.0,0.5869]
[1659235393734,0.80789894,23783.0,23775.0,0.40725733]
[1659235393949,0.85489894,23783.0,23775.0,0.40725733]
[1659235394402,0.40725733,23782.0,23774.0,1.32576733]
[1659235394617,0.6614895,23782.0,23774.0,1.29415733]
[1659235395076,0.40725733,23782.0,23774.0,1.29415733]
[1659235395946,0.48625733,23782.0,23774.0,1.29415733]
[1659235396769,1.04815733,23782.0,23774.0,1.29415733]
[1659235397114,0.96915733,23782.0,23774.0,1.29415733]
[1659235398025,1.09815733,23782.0,23774.0,1.29415733]
[1659235398258,1.09815733,23782.0,23774.0,0.99415733]
[1659235398479,0.40725733,23781.0,23774.0,0.5869]
[1659235400066,0.48625733,23781.0,23774.0,0.5869]
[1659235400967,0.079,23781.0,23774.0,0.99415733]
[1659235401402,0.5619,23782.0,23774.0,0.99415733]
[1659235401647,0.96915733,23782.0,23774.0,0.99415733]
[1659235402094,0.079,23781.0,23774.0,0.99415733]
[1659235402310,0.079,23781.0,23775.0,0.3]
[1659235403014,0.079,23781.0,23774.0,0.99415733]
[1659235403256,0.079,23781.0,23774.0,1.29415733]
[1659235406868,0.157,23781.0,23774.0,1.29415733]
[1659235407304,0.157,23781.0,23776.0,0.04992623]
[1659235407535,0.157,23781.0,23776.0,0.45718356]
[1659235407536,0.17847003,23781.0,23776.0,0.45718356]
[1659235407764,0.17847003,23781.0,23778.0,0.04992623]
[1659235407996,0.25647003,23781.0,23779.0,0.03088446]
[1659235408728,0.02147003,23781.0,23779.0,0.03088446]
[1659235408938,0.079,23781.0,23779.0,0.03088446]
[1659235409176,0.079,23781.0,23780.0,1.89835701]
[1659235409407,0.079,23781.0,23780.0,2.20177001]
[1659235409635,0.079,23781.0,23780.0,2.33337001]
[1659235410086,0.01808721,23781.0,23780.0,2.33337001]
[1659235410316,0.41425258,23785.0,23784.0,0.44992623]
[1659235410540,0.41425258,23785.0,23784.0,0.76059656]
[1659235410952,0.41425258,23785.0,23784.0,0.79148099]
[1659235410954,0.41425258,23785.0,23784.0,0.86248099]
[1659235412273,0.41425258,23785.0,23784.0,0.79148099]
[1659235413069,0.41425258,23785.0,23784.0,0.86048099]
[1659235414204,0.41425258,23785.0,23784.0,0.79148099]
[1659235414632,0.41425258,23785.0,23784.0,0.76059656]
[1659235414875,0.41425258,23785.0,23784.0,0.04992623]
[1659235415108,0.41425258,23785.0,23779.0,0.04992623]
[1659235415338,0.41425258,23785.0,23784.0,0.069]
[1659235416692,0.41425258,23785.0,23780.0,0.40725733]
[1659235416910,0.41425258,23785.0,23784.0,0.08]
[1659235418286,0.41425258,23785.0,23783.0,0.03330759]
[1659235418599,0.41425258,23785.0,23780.0,0.40725733]
[1659235418708,0.43572261,23785.0,23780.0,0.40725733]
[1659235418943,0.43572261,23785.0,23783.0,0.08]
[1659235419389,0.41425258,23785.0,23784.0,0.03128521]
[1659235419615,0.41425258,23785.0,23783.0,0.08]
[1659235420098,0.43572261,23785.0,23783.0,0.08]
[1659235420322,0.43572261,23785.0,23780.0,0.40725733]
[1659235420323,0.41425258,23785.0,23780.0,0.40725733]
[1659235420534,0.43572261,23785.0,23780.0,0.40725733]
[1659235420980,0.43572261,23785.0,23780.0,0.48725733]
[1659235421451,0.43572261,23785.0,23781.0,0.40725733]
[1659235421678,0.43572261,23785.0,23782.0,0.03128525]
[1659235422570,0.05,23784.0,23782.0,0.03128525]
[1659235422791,0.02147003,23784.0,23782.0,0.03128525]
[1659235422981,0.41425258,23785.0,23782.0,0.11128525]
[1659235424179,0.41425258,23785.0,23782.0,0.03128525]
[1659235424390,0.43572261,23785.0,23782.0,0.03128525]
[1659235424827,0.43572261,23785.0,23782.0,0.11128525]
[1659235425160,0.41425258,23785.0,23782.0,0.11128525]
[1659235426189,0.41425258,23785.0,23782.0,0.03128525]
[1659235426410,0.43572261,23785.0,23782.0,0.03128525]
[1659235426842,0.43572261,23785.0,23782.0,0.11128525]
[1659235427044,0.05,23784.0,23782.0,0.11128525]
[1659235427249,0.43572261,23785.0,23782.0,0.11128525]
[1659235428149,0.00394161,23784.0,23781.0,0.40725733]
[1659235428365,0.43572261,23785.0,23781.0,0.40725733]
[1659235428788,0.43572261,23785.0,23781.0,0.47125733]
[1659235429291,0.41425258,23785.0,23782.0,0.03135502]
[1659235429501,0.43572261,23785.0,23782.0,0.03135502]
[1659235429704,0.41425258,23785.0,23782.0,0.03135502]
[1659235429833,0.05,23784.0,23782.0,0.03135502]
[1659235430256,0.02147003,23784.0,23782.0,0.03135502]
[1659235430466,0.41425258,23785.0,23782.0,0.03135502]
[1659235430886,0.43560909,23785.0,23782.0,0.09535502]
[1659235431752,0.05,23784.0,23782.0,0.09535502]
[1659235431976,0.41425258,23785.0,23782.0,0.09535502]
[1659235431977,0.43560909,23785.0,23782.0,0.09535502]
[1659235432189,0.43560909,23785.0,23782.0,0.03135502]
[1659235432391,0.05,23784.0,23782.0,0.03135502]
[1659235432680,0.43560909,23785.0,23782.0,0.03135502]
[1659235432918,0.4395507,23785.0,23781.0,0.40725733]
[1659235433339,0.4395507,23785.0,23782.0,0.03112134]
[1659235433663,0.4395507,23785.0,23781.0,0.40725733]
[1659235434377,0.4395507,23785.0,23782.0,0.08712134]
[1659235434513,0.00394161,23784.0,23782.0,0.056]
[1659235435139,0.43560909,23785.0,23782.0,0.056]
[1659235435383,0.43560909,23785.0,23783.0,0.03112133]
[1659235435622,0.05,23784.0,23783.0,0.03112133]
[1659235435843,0.00394161,23784.0,23781.0,0.40725733]
[1659235436062,0.02529812,23784.0,23778.0,0.793383]
[1659235436283,0.02529812,23784.0,23778.0,1.19564033]
[1659235437006,0.02529812,23784.0,23778.0,1.25964033]
[1659235437446,0.02135651,23784.0,23779.0,0.303413]
[1659235437669,0.02135651,23784.0,23778.0,1.25964033]
[1659235438399,0.02135651,23784.0,23778.0,1.19564033]
[1659235439054,0.02135651,23784.0,23778.0,1.26264033]
[1659235439306,0.05,23783.0,23779.0,0.303413]
[1659235439528,0.41425258,23785.0,23780.0,0.03073155]
[1659235439764,0.82150991,23785.0,23778.0,1.26264033]
[1659235440175,0.82150991,23785.0,23778.0,1.19564033]
[1659235440901,0.82150991,23785.0,23778.0,1.26264033]
[1659235441067,0.82150991,23785.0,23778.0,1.05245733]
[1659235441665,0.3,23784.0,23778.0,1.05245733]
[1659235441864,0.82150991,23785.0,23778.0,1.05245733]
[1659235442380,0.70725733,23784.0,23778.0,0.5782]
[1659235442810,0.70725733,23784.0,23778.0,0.067]
[1659235444222,0.70725733,23784.0,23776.0,0.5862]
[1659235444442,0.70725733,23784.0,23777.0,0.40725733]
[1659235446689,0.40725733,23784.0,23777.0,0.40725733]
[1659235447614,0.40725733,23784.0,23781.0,0.011946]
[1659235447854,0.00394161,23783.0,23781.0,0.011946]
[1659235448086,1.62868761,23782.0,23781.0,6e-06]
[1659235448311,2.65812513,23782.0,23781.0,6e-06]
[1659235448582,3.65962513,23782.0,23781.0,6e-06]
[1659235449035,1.95538761,23782.0,23781.0,6e-06]
[1659235449267,1.48151384,23782.0,23781.0,6e-06]
[1659235450405,1.51311384,23782.0,23781.0,6e-06]
[1659235450864,0.52861384,23782.0,23781.0,6e-06]
[1659235451097,0.52861384,23782.0,23781.0,0.078006]
[1659235452211,0.52861384,23782.0,23781.0,6e-06]
[1659235452861,0.55814161,23783.0,23781.0,6e-06]
[1659235453099,0.55814161,23783.0,23781.0,0.080006]
[1659235453100,0.96539894,23783.0,23781.0,0.080006]
[1659235453333,0.41119894,23783.0,23781.0,0.080006]
[1659235453816,0.41119894,23783.0,23766.0,0.60132623]
[1659235453817,0.12135651,23777.0,23766.0,0.60132623]
[1659235454058,0.7073311,23776.0,23768.0,0.210265]
[1659235454286,0.7073311,23776.0,23766.0,0.5514]
[1659235454287,0.40725733,23775.0,23766.0,0.5514]
[1659235454508,0.12135651,23769.0,23766.0,0.5514]
[1659235454741,0.210347,23771.0,23763.0,0.08154623]
[1659235454977,0.3,23774.0,23764.0,0.71067033]
[1659235455202,0.3,23774.0,23766.0,0.04992623]
[1659235455203,0.40725733,23773.0,23766.0,0.04992623]
[1659235455433,0.40725733,23773.0,23766.0,0.40725733]
[1659235457111,0.48625733,23773.0,23766.0,0.40725733]
[1659235457342,0.48625733,23773.0,23766.0,0.40225733]
[1659235458247,0.40725733,23773.0,23766.0,0.40225733]
[1659235458979,0.48625733,23773.0,23766.0,0.40225733]
[1659235460307,0.40725733,23773.0,23766.0,0.40225733]
[1659235460977,0.48625733,23773.0,23766.0,0.40225733]
[1659235462807,0.3,23772.0,23766.0,0.40225733]
[1659235463265,0.05,23770.0,23763.0,0.5775]
[1659235463486,0.210359,23768.0,23763.0,0.5775]
[1659235463812,0.210359,23768.0,23762.0,0.0022]
[1659235464023,0.210359,23768.0,23762.0,0.40945733]
[1659235464947,0.231359,23768.0,23762.0,0.48545733]
[1659235466286,0.231359,23768.0,23762.0,0.40945733]
[1659235466287,0.210359,23768.0,23762.0,0.40945733]
[1659235466977,0.248359,23768.0,23762.0,0.40945733]
[1659235467473,0.70725733,23767.0,23762.0,0.0022]
[1659235467690,0.82135651,23763.0,23762.0,0.0022]
[1659235467920,1.03570512,23763.0,23762.0,0.0022]
[1659235468385,0.33570512,23763.0,23762.0,0.0022]
[1659235468597,0.33176351,23763.0,23762.0,0.0022]
[1659235468826,0.12135651,23763.0,23762.0,0.0022]
[1659235469058,0.079,23763.0,23762.0,0.0022]
[1659235469522,0.079,23763.0,23762.0,0.05204992]
[1659235470206,0.5816,23766.0,23762.0,0.05204992]
[1659235470684,0.00394161,23765.0,23762.0,0.05204992]
[1659235470901,0.00394161,23765.0,23762.0,0.12104992]
[1659235471818,0.02529812,23765.0,23762.0,0.12104992]
[1659235472256,0.02529812,23765.0,23762.0,0.05204992]
[1659235472495,0.02529812,23765.0,23762.0,0.05197666]
[1659235472948,0.10429812,23765.0,23762.0,0.05197666]
[1659235473853,0.10035651,23765.0,23764.0,0.02864349]
[1659235474085,0.079,23765.0,23764.0,0.09437623]
[1659235474351,0.615,23771.0,23764.0,1.09511371]
[1659235474564,0.615,23771.0,23764.0,0.75718356]
[1659235475025,0.694,23771.0,23764.0,0.75718356]
[1659235475244,0.94834666,23771.0,23766.0,0.04992623]
[1659235476138,0.694,23771.0,23766.0,0.04992623]
[1659235476400,0.615,23771.0,23766.0,0.04992623]
[1659235477074,0.694,23771.0,23766.0,0.04992623]
[1659235477291,0.94836914,23771.0,23766.0,0.04992623]
[1659235477726,0.694,23771.0,23766.0,0.04992623]
[1659235478463,0.615,23771.0,23766.0,0.04992623]
[1659235478896,0.694,23771.0,23766.0,0.04992623]
[1659235480292,0.615,23771.0,23766.0,0.04992623]
[1659235480518,0.615,23771.0,23768.0,0.04992623]
[1659235480763,0.9325,23772.0,23768.0,0.04992623]
[1659235480953,0.079,23771.0,23768.0,0.04992623]
[1659235481171,0.08294161,23771.0,23768.0,0.04992623]
[1659235481636,0.10429812,23771.0,23768.0,0.04992623]
[1659235481852,0.08294161,23771.0,23768.0,0.04992623]
[1659235482092,0.05,23770.0,23768.0,0.04992623]
[1659235482307,0.10429812,23771.0,23768.0,0.04992623]
[1659235482308,0.02529812,23771.0,23768.0,0.04992623]
[1659235482537,1.519621,23775.0,23768.0,0.04992623]
[1659235482538,1.219321,23775.0,23770.0,0.04445]
[1659235482827,0.02135651,23775.0,23771.0,0.04992623]
[1659235483040,0.5999,23779.0,23774.0,0.07856972]
[1659235483268,0.9696,23781.0,23778.0,0.02864349]
[1659235483500,0.9696,23781.0,23779.0,0.03073155]
[1659235483501,0.98035733,23781.0,23779.0,0.03073155]
[1659235483721,0.40725733,23781.0,23779.0,0.03073155]
[1659235484400,1.1709,23783.0,23779.0,0.03073155]
[1659235484623,1.19225651,23783.0,23779.0,0.03073155]
[1659235484847,0.02135651,23783.0,23779.0,0.03073155]
[1659235485059,0.69565258,23785.0,23779.0,0.03073155]
[1659235485060,0.079,23781.0,23779.0,0.03073155]
[1659235485518,0.079,23781.0,23779.0,0.04992623]
[1659235486939,0.08,23781.0,23779.0,0.04992623]
[1659235487162,0.4,23780.0,23779.0,0.04992623]
[1659235487406,0.35558227,23781.0,23779.0,0.04992623]
[1659235487638,0.35,23780.0,23779.0,0.04992623]
[1659235487861,0.33422576,23781.0,23779.0,0.04992623]
[1659235488082,0.3,23780.0,23779.0,0.04992623]
[1659235488314,0.27558227,23781.0,23779.0,0.04992623]
[1659235488541,0.05394161,23780.0,23779.0,0.04992623]
[1659235488758,0.00394161,23780.0,23779.0,0.04992623]
[1659235489661,0.08,23781.0,23779.0,0.04992623]
[1659235489926,0.08394161,23781.0,23779.0,0.04992623]
[1659235490869,0.00394161,23781.0,23779.0,0.04992623]
[1659235491065,0.08394161,23781.0,23779.0,0.04992623]
[1659235491316,0.10529812,23781.0,23779.0,0.04992623]
[1659235491534,0.05,23780.0,23779.0,0.04992623]
[1659235491773,0.08394161,23781.0,23779.0,0.08065778]
[1659235491986,0.10529812,23781.0,23779.0,0.04992623]
[1659235492208,0.00394161,23781.0,23779.0,0.04992623]
[1659235495074,0.05,23780.0,23779.0,0.03940701]
[1659235495297,0.00394161,23781.0,23779.0,0.03940701]
[1659235495527,0.02529812,23781.0,23779.0,0.03940701]
[1659235495748,0.10529812,23781.0,23779.0,0.03940701]
[1659235495961,0.08394161,23781.0,23779.0,0.03940701]
[1659235496181,0.05,23780.0,23779.0,0.03940701]
[1659235496394,0.16394161,23781.0,23779.0,0.03940701]
[1659235496622,0.18529812,23781.0,23779.0,0.03940701]
[1659235496857,0.16394161,23781.0,23779.0,0.03940701]
[1659235497095,0.4,23780.0,23779.0,0.03940701]
[1659235497323,0.35,23780.0,23779.0,0.03940701]
[1659235497567,0.00394161,23781.0,23779.0,0.03940701]
[1659235497771,0.05,23780.0,23779.0,0.03940701]
[1659235497984,0.069,23780.0,23779.0,0.04540701]
[1659235498903,0.47625733,23780.0,23779.0,0.006]
[1659235499125,0.77625733,23780.0,23779.0,0.006]
[1659235499390,0.77625733,23780.0,23772.0,0.57980701]
[1659235499391,0.70725733,23780.0,23772.0,0.57980701]
[1659235499611,0.40725733,23779.0,23772.0,0.57980701]
[1659235499846,0.40725733,23779.0,23772.0,0.5404]
[1659235500306,0.40725733,23779.0,23772.0,0.94765733]
[1659235500762,0.46525733,23780.0,23772.0,0.94765733]
[1659235501200,0.40725733,23780.0,23772.0,0.94765733]
[1659235502122,0.47025733,23780.0,23772.0,0.94765733]
[1659235503266,0.40725733,23780.0,23772.0,0.94765733]
[1659235503930,0.47025733,23780.0,23772.0,0.94765733]
[1659235505077,0.3,23779.0,23772.0,0.94765733]
[1659235505557,0.3,23779.0,23772.0,0.40725733]
[1659235505780,0.70725733,23779.0,23772.0,0.40725733]
[1659235506015,0.40725733,23778.0,23772.0,0.078]
[1659235506476,0.40725733,23778.0,23772.0,0.11740701]
[1659235507389,0.40725733,23778.0,23772.0,0.03940701]
[1659235507829,0.40725733,23778.0,23775.0,0.03940701]
[1659235508049,0.05394161,23777.0,23775.0,0.03940701]
[1659235508269,0.00394161,23777.0,23775.0,0.03940701]
[1659235508783,0.10135651,23778.0,23775.0,0.03940701]
[1659235509237,0.00394161,23777.0,23775.0,0.03940701]
[1659235509437,0.00695079,23776.0,23775.0,0.03940701]
[1659235509891,0.00695079,23776.0,23775.0,0.05240701]
[1659235510341,0.00695079,23776.0,23775.0,0.013]
[1659235510342,0.53331812,23776.0,23775.0,0.013]
[1659235511215,0.53331812,23776.0,23769.0,0.03940701]
[1659235511464,0.53331812,23776.0,23774.0,0.03940701]
[1659235511465,0.0283073,23776.0,23774.0,0.03940701]
[1659235511701,0.00695079,23776.0,23775.0,0.36278804]
[1659235511929,0.00695079,23776.0,23775.0,0.77004537]
[1659235513540,0.0108924,23776.0,23775.0,0.43590082]
[1659235513757,0.00695079,23776.0,23775.0,0.46663237]
[1659235514007,0.00695079,23776.0,23775.0,0.043]
[1659235514449,0.08161079,23776.0,23775.0,0.043]
[1659235515392,0.08161079,23776.0,23774.0,0.03940701]
[1659235516102,0.08161079,23776.0,23775.0,0.044]
[1659235517031,0.07996188,23776.0,23775.0,0.044]
[1659235517264,0.07996188,23776.0,23774.0,0.07013856]
[1659235517485,0.07996188,23776.0,23770.0,0.5898]
[1659235517486,0.210307,23775.0,23770.0,0.5898]
[1659235517721,0.66756433,23775.0,23768.0,0.5895]
[1659235517951,0.70725733,23774.0,23768.0,0.5895]
[1659235518177,0.40725733,23773.0,23765.0,0.5804]
[1659235518423,0.3,23772.0,23765.0,1.57715733]
[1659235518649,0.3,23772.0,23765.0,0.99675733]
[1659235518650,0.00530188,23770.0,23765.0,0.99675733]
[1659235518885,0.00530188,23770.0,23765.0,1.29675733]
[1659235519335,0.02665839,23770.0,23766.0,0.303413]
[1659235519560,0.00530188,23770.0,23765.0,1.29675733]
[1659235519783,0.00530188,23770.0,23767.0,0.03073155]
[1659235520294,0.00530188,23770.0,23767.0,0.33414455]
[1659235520516,0.00530188,23770.0,23767.0,0.03073155]
[1659235520952,0.00530188,23770.0,23769.0,0.47864349]
[1659235521174,0.00530188,23770.0,23769.0,0.02864349]
[1659235522103,0.00924349,23770.0,23769.0,0.383413]
[1659235522313,0.00530188,23770.0,23769.0,0.08]
[1659235523201,0.00530188,23770.0,23767.0,0.43798888]
[1659235523445,0.00530188,23770.0,23768.0,0.71067033]
[1659235523665,0.00530188,23770.0,23769.0,0.02864349]
[1659235526002,0.00530188,23770.0,23769.0,0.10864349]
[1659235526653,0.00530188,23770.0,23769.0,0.41205649]
[1659235527338,0.00530188,23770.0,23769.0,0.33205649]
[1659235528012,0.00530188,23770.0,23769.0,0.10864349]
[1659235529241,0.00530188,23770.0,23769.0,0.02864349]
[1659235529907,0.00530188,23770.0,23769.0,0.10864349]
[1659235531196,0.00530188,23770.0,23769.0,0.02864349]
[1659235531395,0.00530188,23770.0,23769.0,0.33205649]
[1659235532382,0.00530188,23770.0,23769.0,0.41205649]
[1659235533487,0.00530188,23770.0,23769.0,0.10864349]
[1659235533699,0.00530188,23770.0,23769.0,0.02864349]
[1659235533919,0.00530188,23770.0,23769.0,0.10864349]
[1659235534380,0.07996188,23770.0,23769.0,0.10864349]
[1659235534608,0.07996188,23770.0,23769.0,0.08]
[1659235534848,0.08390349,23770.0,23769.0,0.08]
[1659235535293,0.08390349,23770.0,23767.0,0.03073155]
[1659235535571,0.08390349,23770.0,23767.0,0.43798888]
[1659235535572,0.0306,23770.0,23767.0,0.43798888]
[1659235535790,0.00530188,23770.0,23767.0,0.43798888]
[1659235536017,0.02665839,23770.0,23767.0,0.51698888]
[1659235536908,0.00530188,23770.0,23767.0,0.51698888]
[1659235537048,0.00530188,23770.0,23767.0,0.48625733]
[1659235537275,0.02665839,23770.0,23767.0,0.40725733]
[1659235537481,0.777022,23774.0,23767.0,0.40725733]
[1659235537688,1.28427933,23774.0,23767.0,0.40725733]
[1659235537890,1.28427933,23774.0,23767.0,0.48625733]
[1659235539096,1.28427933,23774.0,23767.0,0.40725733]
[1659235539097,1.18427933,23774.0,23767.0,0.40725733]
[1659235539352,1.23427933,23774.0,23767.0,0.40725733]
[1659235539803,1.24927933,23774.0,23767.0,0.47925733]
[1659235540013,1.29927933,23774.0,23767.0,0.47925733]
[1659235540467,1.24927933,23774.0,23767.0,0.47925733]
[1659235541160,1.23427933,23774.0,23767.0,0.40725733]
[1659235541390,1.18427933,23774.0,23767.0,0.40725733]
[1659235541824,1.19927933,23774.0,23767.0,0.47925733]
[1659235542944,1.19927933,23774.0,23768.0,0.3]
[1659235542945,0.42225733,23774.0,23768.0,0.3]
[1659235543172,0.40725733,23774.0,23769.0,0.03940701]
[1659235543550,0.40725733,23774.0,23767.0,0.41990081]
[1659235543772,0.40725733,23774.0,23767.0,0.40725733]
[1659235543983,0.42225733,23774.0,23769.0,0.072]
[1659235544661,0.11023509,23768.0,23762.0,0.00205043]
[1659235544872,0.210384,23767.0,23762.0,0.00205043]
[1659235545950,0.289384,23767.0,23762.0,0.00205043]
[1659235547273,0.210384,23767.0,23762.0,0.00205043]
[1659235547788,0.210354,23770.0,23766.0,0.03940701]
[1659235548017,1.34233733,23773.0,23766.0,0.03940701]
[1659235548020,0.079,23767.0,23766.0,0.03940701]
[1659235548244,0.079,23767.0,23766.0,0.76272082]
[1659235548447,0.079,23767.0,23766.0,0.45930782]
[1659235548889,0.079,23767.0,23766.0,0.76272082]